[Event "*** Titled Tuesday Blitz"]
[Site "Chess.com"]
[Date "2020.04.21"]
[Round "5"]
[White "wonderfultime"]
[Black "youngKID"]
[Result "1/2-1/2"]
[WhiteElo "2905"]
[BlackElo "2806"]
[TimeControl "180+1"]
[EndTime "10:59:26 PDT"]
[Termination "Game drawn by agreement"]

1. d4 {[%clk 0:02:57.1]} 1... Nf6 {[%clk 0:02:59.4]} 2. Nf3 {[%clk 0:02:57]}
2... g6 {[%clk 0:02:59.7]} 3. Bg5 {[%clk 0:02:57.6]} 3... Bg7 {[%clk 0:03:00.1]}
4. Nbd2 {[%clk 0:02:58.2]} 4... d5 {[%clk 0:03:00.5]} 5. e3 {[%clk 0:02:57.3]}
5... h6 {[%clk 0:03:01]} 6. Bh4 {[%clk 0:02:57.2]} 6... c5 {[%clk 0:03:01.3]} 7.
c3 {[%clk 0:02:57.3]} 7... cxd4 {[%clk 0:03:01.8]} 8. cxd4 {[%clk 0:02:56.4]}
8... Nc6 {[%clk 0:03:00.8]} 9. Bd3 {[%clk 0:02:54.7]} 9... O-O {[%clk
0:02:59.2]} 10. h3 {[%clk 0:02:54.4]} 10... Qb6 {[%clk 0:02:46.6]} 11. Qb3
{[%clk 0:02:53.5]} 11... Qxb3 {[%clk 0:02:33.2]} 12. Nxb3 {[%clk 0:02:48.5]}
12... Ne4 {[%clk 0:02:27.9]} 13. Nfd2 {[%clk 0:02:32]} 13... Nxd2 {[%clk
0:02:02.3]} 14. Kxd2 {[%clk 0:02:31]} 14... e5 {[%clk 0:02:02.7]} 15. dxe5
{[%clk 0:02:31.9]} 15... Nxe5 {[%clk 0:02:03.1]} 16. Nd4 {[%clk 0:02:32.1]}
16... Bd7 {[%clk 0:01:53.6]} 17. Rac1 {[%clk 0:02:30.8]} 17... Rac8 {[%clk
0:01:53.3]} 18. b3 {[%clk 0:02:25.1]} 18... Nxd3 {[%clk 0:01:52.6]} 19. Kxd3
{[%clk 0:02:25.1]} 19... Rfe8 {[%clk 0:01:50]} 20. Bg3 {[%clk 0:02:21.5]} 20...
Bf8 {[%clk 0:01:48.7]} 21. a4 {[%clk 0:01:54.3]} 21... Ba3 {[%clk 0:01:39.3]}
22. Rxc8 {[%clk 0:01:13.5]} 22... Rxc8 {[%clk 0:01:40.2]} 23. Be5 {[%clk
0:01:14]} 23... a6 {[%clk 0:01:17.7]} 24. g4 {[%clk 0:01:11.3]} 24... Bb2 {[%clk
0:01:05.6]} 25. Rb1 {[%clk 0:01:08.7]} 25... Bxd4 {[%clk 0:00:50.1]} 26. Bxd4
{[%clk 0:01:02.4]} 26... f5 {[%clk 0:00:36.1]} 27. f3 {[%clk 0:01:01.7]} 27...
Kf7 {[%clk 0:00:35.7]} 28. Kd2 {[%clk 0:00:58.3]} 28... Rc6 {[%clk 0:00:28.5]}
29. Rg1 {[%clk 0:00:45.7]} 29... Rc8 {[%clk 0:00:21.9]} 30. h4 {[%clk
0:00:39.5]} 30... Re8 {[%clk 0:00:15.2]} 31. gxf5 {[%clk 0:00:13.8]} 31... Bxf5
{[%clk 0:00:14.7]} 32. a5 {[%clk 0:00:12.5]} 32... Rc8 {[%clk 0:00:14.8]} 33.
Bc3 {[%clk 0:00:11.3]} 33... h5 {[%clk 0:00:12.7]} 34. Ra1 {[%clk 0:00:11.1]}
34... Rc5 {[%clk 0:00:12.2]} 35. Ra4 {[%clk 0:00:10.7]} 35... Rb5 {[%clk
0:00:12]} 36. Rf4 {[%clk 0:00:09.7]} 36... Ke8 {[%clk 0:00:09.1]} 37. b4 {[%clk
0:00:09.6]} 37... b6 {[%clk 0:00:09.1]} 38. e4 {[%clk 0:00:08.7]} 38... dxe4
{[%clk 0:00:09.5]} 39. fxe4 {[%clk 0:00:09.6]} 39... Bg4 {[%clk 0:00:09.9]} 40.
Rf6 {[%clk 0:00:09.8]} 40... bxa5 {[%clk 0:00:10.3]} 41. bxa5 {[%clk 0:00:10.7]}
41... Bc8 {[%clk 0:00:08.2]} 42. Rxg6 {[%clk 0:00:10.4]} 42... Rc5 {[%clk
0:00:08.1]} 43. Rh6 {[%clk 0:00:08.6]} 43... Bd7 {[%clk 0:00:08.3]} 44. Rh8+
{[%clk 0:00:08.6]} 44... Kf7 {[%clk 0:00:08.2]} 45. Rh7+ {[%clk 0:00:09]} 45...
Ke8 {[%clk 0:00:08.7]} 46. Rh6 {[%clk 0:00:07.4]} 46... Bb5 {[%clk 0:00:08.5]}
47. Bd4 {[%clk 0:00:05.9]} 47... Rc4 {[%clk 0:00:08.2]} 48. Ke3 {[%clk
0:00:06.4]} 48... Ra4 {[%clk 0:00:08]} 49. Bb6 {[%clk 0:00:05.7]} 49... Ra3+
{[%clk 0:00:08.2]} 50. Kf4 {[%clk 0:00:06.1]} 50... Kf7 {[%clk 0:00:04.7]} 51.
Rxh5 {[%clk 0:00:06.2]} 51... Bd3 {[%clk 0:00:05.1]} 52. Rd5 {[%clk 0:00:06.2]}
52... Bc2 {[%clk 0:00:04]} 53. Rd7+ {[%clk 0:00:03.5]} 53... Ke6 {[%clk
0:00:03.6]} 54. Rd4 {[%clk 0:00:03.7]} 54... Ra4 {[%clk 0:00:02]} 55. Rxa4
{[%clk 0:00:03.1]} 55... Bxa4 {[%clk 0:00:02.9]} 56. h5 {[%clk 0:00:04]} 56...
Be8 {[%clk 0:00:03.4]} 57. h6 {[%clk 0:00:04.3]} 57... Bg6 {[%clk 0:00:03.6]}
58. Bd4 {[%clk 0:00:04.9]} 58... Bh7 {[%clk 0:00:02.6]} 59. Bg7 {[%clk
0:00:04.8]} 59... Bg6 {[%clk 0:00:03]} 60. Ke3 {[%clk 0:00:05.3]} 60... Bh7
{[%clk 0:00:02.3]} 61. Kd4 {[%clk 0:00:05.8]} 61... Kd6 {[%clk 0:00:02.8]} 62.
e5+ {[%clk 0:00:06.3]} 62... Kc6 {[%clk 0:00:01.2]} 63. Bf8 {[%clk 0:00:06.2]}
63... Kd7 {[%clk 0:00:01.7]} 64. Kc5 {[%clk 0:00:06.4]} 64... Ke6 {[%clk
0:00:02.1]} 65. Bg7 {[%clk 0:00:06.6]} 65... Bd3 {[%clk 0:00:02.3]} 66. Kb6
{[%clk 0:00:06.5]} 66... Kd7 {[%clk 0:00:02.8]} 67. Kb7 {[%clk 0:00:05.6]} 67...
Ke6 {[%clk 0:00:02.2]} 68. Kc6 {[%clk 0:00:06]} 68... Be4+ {[%clk 0:00:01.9]}
69. Kc5 {[%clk 0:00:06.6]} 69... Bd3 {[%clk 0:00:02.8]} 70. Kb6 {[%clk
0:00:07.5]} 70... Kd7 {[%clk 0:00:02.6]} 71. Bf6 {[%clk 0:00:07.4]} 71... Ke6
{[%clk 0:00:02.9]} 72. h7 {[%clk 0:00:07.2]} 72... Bxh7 {[%clk 0:00:02.5]} 73.
Kxa6 {[%clk 0:00:07.8]} 73... Kd7 {[%clk 0:00:02.5]} 74. Kb7 {[%clk 0:00:08.1]}
74... Be4+ {[%clk 0:00:02.4]} 75. Kb8 {[%clk 0:00:08.5]} 75... Bd3 {[%clk
0:00:02.7]} 76. Kb7 {[%clk 0:00:08.9]} 76... Be4+ {[%clk 0:00:03]} 77. Kb6
{[%clk 0:00:09.3]} 77... Kc8 {[%clk 0:00:03.5]} 78. e6 {[%clk 0:00:09]} 78...
Kb8 {[%clk 0:00:04]} 79. Be5+ {[%clk 0:00:08.2]} 79... Ka8 {[%clk 0:00:03.6]}
80. a6 {[%clk 0:00:06.8]} 80... Bg6 {[%clk 0:00:04.5]} 81. Bd4 {[%clk
0:00:05.8]} 81... Be8 {[%clk 0:00:05.4]} 82. Kc7 {[%clk 0:00:05.8]} 82... Bh5
{[%clk 0:00:06.3]} 83. Kd7 {[%clk 0:00:05.7]} 83... Bg6 {[%clk 0:00:07.2]} 84.
Kd6 {[%clk 0:00:05.9]} 84... Bh5 {[%clk 0:00:08.1]} 85. a7 {[%clk 0:00:06.2]}
85... Bg6 {[%clk 0:00:08.5]} 86. e7 {[%clk 0:00:06.7]} 86... Bh5 {[%clk
0:00:08.7]} 87. Ke6 {[%clk 0:00:07.6]} 87... Be8 {[%clk 0:00:09]} 88. Kf6 {[%clk
0:00:08.5]} 88... Ba4 {[%clk 0:00:09.6]} 89. Ke5 {[%clk 0:00:08.9]} 89... Bb5
{[%clk 0:00:10.1]} 90. Kd6 {[%clk 0:00:09.8]} 90... Be8 {[%clk 0:00:11]} 91. Kc7
{[%clk 0:00:10.2]} 91... Bh5 {[%clk 0:00:11.8]} 92. Kd8 {[%clk 0:00:11.1]} 92...
Bg6 {[%clk 0:00:12.3]} 1/2-1/2

[Event "*** Titled Tuesday Blitz"]
[Site "Chess.com"]
[Date "2020.04.21"]
[Round "5"]
[White "DinaBelenkaya"]
[Black "adricalderon8"]
[Result "1/2-1/2"]
[WhiteElo "2225"]
[BlackElo "2413"]
[TimeControl "180+1"]
[EndTime "10:59:37 PDT"]
[Termination "Game drawn by agreement"]

1. e4 {[%clk 0:03:00.9]} 1... c5 {[%clk 0:02:50.3]} 2. Nc3 {[%clk 0:02:58.8]}
2... Nc6 {[%clk 0:02:49.9]} 3. g3 {[%clk 0:02:57.2]} 3... g6 {[%clk 0:02:45.2]}
4. Bg2 {[%clk 0:02:57.2]} 4... Bg7 {[%clk 0:02:42.2]} 5. d3 {[%clk 0:02:56.7]}
5... Rb8 {[%clk 0:02:31.3]} 6. Nge2 {[%clk 0:02:55]} 6... d6 {[%clk 0:02:17.4]}
7. O-O {[%clk 0:02:53.1]} 7... Nf6 {[%clk 0:02:13.8]} 8. h3 {[%clk 0:02:40.4]}
8... O-O {[%clk 0:02:13.2]} 9. Be3 {[%clk 0:02:38.2]} 9... Nd7 {[%clk
0:02:12.3]} 10. Qd2 {[%clk 0:02:31.2]} 10... Nd4 {[%clk 0:02:08.9]} 11. Nc1
{[%clk 0:02:21.7]} 11... b5 {[%clk 0:02:06.7]} 12. Nd5 {[%clk 0:02:15.9]} 12...
e6 {[%clk 0:02:04.7]} 13. Nf4 {[%clk 0:02:03.6]} 13... Ne5 {[%clk 0:02:04.4]}
14. Qd1 {[%clk 0:01:58.5]} 14... f5 {[%clk 0:02:03.8]} 15. c3 {[%clk 0:01:57.3]}
15... Ndc6 {[%clk 0:02:01.6]} 16. exf5 {[%clk 0:01:49.2]} 16... gxf5 {[%clk
0:01:54.9]} 17. d4 {[%clk 0:01:34.4]} 17... cxd4 {[%clk 0:01:51.6]} 18. cxd4
{[%clk 0:01:34]} 18... Nc4 {[%clk 0:01:51.5]} 19. Bxc6 {[%clk 0:01:31.8]} 19...
Nxb2 {[%clk 0:01:50.8]} 20. Qb3 {[%clk 0:01:22.5]} 20... Nc4 {[%clk 0:01:49.1]}
21. a4 {[%clk 0:01:18.6]} 21... d5 {[%clk 0:01:47.6]} 22. axb5 {[%clk
0:01:13.7]} 22... a6 {[%clk 0:01:47.9]} 23. Qa4 {[%clk 0:00:23.9]} 23... axb5
{[%clk 0:01:46.2]} 24. Bxb5 {[%clk 0:00:22.4]} 24... Nb2 {[%clk 0:01:43.3]} 25.
Qb4 {[%clk 0:00:20.5]} 25... Nc4 {[%clk 0:01:42.6]} 26. Qc5 {[%clk 0:00:16]}
26... Nd6 {[%clk 0:01:39.9]} 27. Bd3 {[%clk 0:00:15]} 27... Ne4 {[%clk
0:01:35.9]} 28. Bxe4 {[%clk 0:00:14.7]} 28... fxe4 {[%clk 0:01:36.8]} 29. Nce2
{[%clk 0:00:13.9]} 29... Bd7 {[%clk 0:01:33.2]} 30. Ra7 {[%clk 0:00:13.7]} 30...
Qe8 {[%clk 0:01:26.9]} 31. Qd6 {[%clk 0:00:13.1]} 31... Bb5 {[%clk 0:01:23.5]}
32. Re1 {[%clk 0:00:08.9]} 32... Rf6 {[%clk 0:01:14.2]} 33. Qc7 {[%clk
0:00:08.8]} 33... Rf7 {[%clk 0:01:11.6]} 34. Qxf7+ {[%clk 0:00:08.4]} 34... Qxf7
{[%clk 0:01:11.8]} 35. Rxf7 {[%clk 0:00:09.1]} 35... Kxf7 {[%clk 0:01:12.7]} 36.
Nc3 {[%clk 0:00:09.2]} 36... Bc4 {[%clk 0:01:11.2]} 37. Ra1 {[%clk 0:00:09]}
37... Rb7 {[%clk 0:01:10.3]} 38. Na4 {[%clk 0:00:08.3]} 38... Bf8 {[%clk
0:01:08.8]} 39. Nc5 {[%clk 0:00:07.9]} 39... Bxc5 {[%clk 0:01:08.8]} 40. dxc5
{[%clk 0:00:07.9]} 40... e5 {[%clk 0:01:09.4]} 41. Ng2 {[%clk 0:00:05]} 41... d4
{[%clk 0:01:09.6]} 42. Bd2 {[%clk 0:00:05.3]} 42... Rc7 {[%clk 0:01:09.2]} 43.
Bb4 {[%clk 0:00:05]} 43... Ke6 {[%clk 0:01:08.8]} 44. Ra5 {[%clk 0:00:04.1]}
44... d3 {[%clk 0:01:06]} 45. Ne3 {[%clk 0:00:03.8]} 45... Bb3 {[%clk
0:01:05.7]} 46. Bd2 {[%clk 0:00:02.3]} 46... Kd7 {[%clk 0:01:01]} 47. Kf1 {[%clk
0:00:02.7]} 47... Rb7 {[%clk 0:01:00.5]} 48. Ke1 {[%clk 0:00:02.5]} 48... Be6
{[%clk 0:01:01]} 49. Ra1 {[%clk 0:00:02.2]} 49... Bxh3 {[%clk 0:01:00.9]} 50.
Rc1 {[%clk 0:00:01.9]} 50... Rc7 {[%clk 0:01:01.3]} 51. Nc4 {[%clk 0:00:02.5]}
51... Ke6 {[%clk 0:01:00.4]} 52. Nb6 {[%clk 0:00:02.7]} 52... Bf5 {[%clk
0:00:58.5]} 53. c6 {[%clk 0:00:02.9]} 53... Bg6 {[%clk 0:00:53.5]} 54. Na8
{[%clk 0:00:02.6]} 54... Rc8 {[%clk 0:00:53.8]} 55. c7 {[%clk 0:00:03.3]} 55...
Be8 {[%clk 0:00:52.1]} 56. Nb6 {[%clk 0:00:03.9]} 56... Bd7 {[%clk 0:00:51.2]}
57. Rc6+ {[%clk 0:00:04.8]} 57... Bxc6 {[%clk 0:00:51]} 58. Nxc8 {[%clk
0:00:01.6]} 58... Kd7 {[%clk 0:00:51.2]} 59. Ne7 {[%clk 0:00:02.1]} 59... Bb7
{[%clk 0:00:49.4]} 60. Nc6 {[%clk 0:00:03]} 60... Kxc6 {[%clk 0:00:49.2]} 61.
c8=Q+ {[%clk 0:00:03]} 61... Bxc8 {[%clk 0:00:49.2]} 62. Be3 {[%clk 0:00:02.5]}
62... Bg4 {[%clk 0:00:49.1]} 63. Kd2 {[%clk 0:00:03.4]} 63... Kd5 {[%clk
0:00:49.5]} 64. Bh6 {[%clk 0:00:03.4]} 64... Ke6 {[%clk 0:00:48]} 65. Be3 {[%clk
0:00:03.4]} 65... h5 {[%clk 0:00:48.9]} 66. Bg5 {[%clk 0:00:03.4]} 66... Bf3
{[%clk 0:00:49.2]} 67. Bh4 {[%clk 0:00:03.7]} 67... Kf5 {[%clk 0:00:48.9]} 68.
Be7 {[%clk 0:00:03.7]} 68... Kg4 {[%clk 0:00:49.3]} 69. Bf6 {[%clk 0:00:03.8]}
69... Kf5 {[%clk 0:00:47.6]} 70. Bg7 {[%clk 0:00:03.9]} 70... e3+ {[%clk
0:00:47.8]} 71. Kxe3 {[%clk 0:00:03.3]} 71... e4 {[%clk 0:00:48.7]} 72. Kd2
{[%clk 0:00:03.1]} 72... Kg4 {[%clk 0:00:48.7]} 73. Bf6 {[%clk 0:00:02.6]} 73...
Kh3 {[%clk 0:00:48.9]} 74. Ke3 {[%clk 0:00:02.9]} 74... Kg2 {[%clk 0:00:48.7]}
75. Bc3 {[%clk 0:00:03.6]} 75... Kf1 {[%clk 0:00:48.3]} 76. Bb4 {[%clk
0:00:03.8]} 76... Bg4 {[%clk 0:00:47.1]} 77. Ba5 {[%clk 0:00:03.5]} 77... Bf5
{[%clk 0:00:46]} 78. Bb4 {[%clk 0:00:03.1]} 78... Kg2 {[%clk 0:00:46.5]} 79. Ba5
{[%clk 0:00:03.1]} 79... h4 {[%clk 0:00:46.8]} 80. gxh4 {[%clk 0:00:02.5]} 80...
Kh3 {[%clk 0:00:47.2]} 81. Bb4 {[%clk 0:00:02.9]} 81... Kxh4 {[%clk 0:00:47.2]}
82. Ba5 {[%clk 0:00:02.9]} 82... Kh3 {[%clk 0:00:47.7]} 83. Bb4 {[%clk
0:00:02.9]} 83... Kg2 {[%clk 0:00:48.6]} 84. Ba5 {[%clk 0:00:03]} 84... Kh3
{[%clk 0:00:49.5]} 85. Bb4 {[%clk 0:00:03.1]} 85... Kh4 {[%clk 0:00:50.3]} 86.
Ba5 {[%clk 0:00:03.5]} 86... Kg5 {[%clk 0:00:51.2]} 87. Bb4 {[%clk 0:00:03.9]}
87... Kf6 {[%clk 0:00:52.1]} 88. Ba5 {[%clk 0:00:04.4]} 88... Ke6 {[%clk
0:00:52.9]} 89. Bb4 {[%clk 0:00:04.4]} 89... Kd5 {[%clk 0:00:53.8]} 90. Be1
{[%clk 0:00:04]} 90... Kc4 {[%clk 0:00:54.2]} 91. Ba5 {[%clk 0:00:03.5]} 91...
Kb3 {[%clk 0:00:55.1]} 92. Bb6 {[%clk 0:00:02.5]} 92... Kc2 {[%clk 0:00:56]} 93.
Ba5 {[%clk 0:00:02.6]} 93... Kc1 {[%clk 0:00:56]} 94. Bb4 {[%clk 0:00:02.7]}
94... Kc2 {[%clk 0:00:56.3]} 95. Ba5 {[%clk 0:00:02.9]} 95... Bg6 {[%clk
0:00:57.2]} 96. Bb4 {[%clk 0:00:03]} 96... Kb3 {[%clk 0:00:58]} 97. Ba5 {[%clk
0:00:03]} 97... Ka4 {[%clk 0:00:58.9]} 98. Bd2 {[%clk 0:00:03]} 98... Kb5 {[%clk
0:00:58.8]} 99. Be1 {[%clk 0:00:02.5]} 99... Kc4 {[%clk 0:00:59]} 100. Bd2
{[%clk 0:00:02.5]} 100... Bh7 {[%clk 0:00:59.6]} 101. Be1 {[%clk 0:00:02.4]}
101... Kb3 {[%clk 0:01:00.5]} 102. Bd2 {[%clk 0:00:02.6]} 102... Kc2 {[%clk
0:01:01.4]} 103. Ba5 {[%clk 0:00:02.3]} 103... Kd1 {[%clk 0:01:02.3]} 104. Bb4
{[%clk 0:00:02.5]} 104... Bg6 {[%clk 0:01:02.4]} 105. Ba5 {[%clk 0:00:02.6]}
105... Bf5 {[%clk 0:01:03.3]} 106. Bb4 {[%clk 0:00:02.9]} 106... Kc1 {[%clk
0:01:02.9]} 107. Ba5 {[%clk 0:00:03]} 107... Kc2 {[%clk 0:01:03.8]} 108. Bb4
{[%clk 0:00:03.2]} 1/2-1/2

[Event "*** Titled Tuesday Blitz"]
[Site "Chess.com"]
[Date "2020.04.21"]
[Round "5"]
[White "TERMINATOR_PC"]
[Black "yamalchess"]
[Result "1/2-1/2"]
[WhiteElo "2394"]
[BlackElo "2538"]
[TimeControl "180+1"]
[EndTime "10:59:42 PDT"]
[Termination "Game drawn by repetition"]

1. e4 {[%clk 0:03:00.6]} 1... e5 {[%clk 0:02:58.6]} 2. Nf3 {[%clk 0:03:00.4]}
2... Nc6 {[%clk 0:02:58.4]} 3. Nc3 {[%clk 0:03:01]} 3... Nf6 {[%clk 0:02:57.8]}
4. d4 {[%clk 0:03:01.6]} 4... exd4 {[%clk 0:02:56.7]} 5. Nxd4 {[%clk 0:03:02.5]}
5... Bb4 {[%clk 0:02:57]} 6. Nxc6 {[%clk 0:03:02.6]} 6... bxc6 {[%clk
0:02:57.2]} 7. Bd3 {[%clk 0:03:03.2]} 7... d5 {[%clk 0:02:57.7]} 8. exd5 {[%clk
0:03:03]} 8... cxd5 {[%clk 0:02:58.1]} 9. O-O {[%clk 0:03:03]} 9... O-O {[%clk
0:02:57.9]} 10. Bg5 {[%clk 0:03:03.2]} 10... c6 {[%clk 0:02:56.7]} 11. Qf3
{[%clk 0:03:03.3]} 11... h6 {[%clk 0:02:54.2]} 12. Bxf6 {[%clk 0:03:03.1]} 12...
Qxf6 {[%clk 0:02:53.7]} 13. Qxf6 {[%clk 0:03:03.7]} 13... gxf6 {[%clk
0:02:54.2]} 14. Ne2 {[%clk 0:03:04.4]} 14... Rb8 {[%clk 0:02:49]} 15. Nd4 {[%clk
0:02:49.5]} 15... Bd7 {[%clk 0:02:40.6]} 16. Bf5 {[%clk 0:02:38.8]} 16... Bxf5
{[%clk 0:02:34.1]} 17. Nxf5 {[%clk 0:02:39.7]} 17... Kh7 {[%clk 0:02:34.1]} 18.
Rad1 {[%clk 0:02:10.8]} 18... Rfe8 {[%clk 0:02:28]} 19. c3 {[%clk 0:02:04.5]}
19... Bf8 {[%clk 0:02:15.5]} 20. Rd2 {[%clk 0:01:48.7]} 20... Rb6 {[%clk
0:02:00.9]} 21. b3 {[%clk 0:01:02]} 21... a5 {[%clk 0:01:41.6]} 22. Rc1 {[%clk
0:00:16.1]} 22... Kg6 {[%clk 0:01:34.1]} 23. Nd4 {[%clk 0:00:09.1]} 23... f5
{[%clk 0:01:20.5]} 24. f4 {[%clk 0:00:06.1]} 24... Bg7 {[%clk 0:01:15.7]} 25.
Kf2 {[%clk 0:00:03.4]} 25... Re4 {[%clk 0:01:15.2]} 26. g3 {[%clk 0:00:03.5]}
26... a4 {[%clk 0:00:49.7]} 27. b4 {[%clk 0:00:02.8]} 27... Bxd4+ {[%clk
0:00:38]} 28. Rxd4 {[%clk 0:00:03.7]} 28... Rxd4 {[%clk 0:00:36.7]} 29. cxd4
{[%clk 0:00:04.6]} 29... Rxb4 {[%clk 0:00:36.1]} 30. Rxc6+ {[%clk 0:00:05.2]}
30... f6 {[%clk 0:00:36.1]} 31. Ke3 {[%clk 0:00:04.6]} 31... Rb2 {[%clk
0:00:35.7]} 32. Rc5 {[%clk 0:00:03.8]} 32... Rxa2 {[%clk 0:00:29.5]} 33. Rxd5
{[%clk 0:00:04.3]} 33... Rxh2 {[%clk 0:00:28.1]} 34. Ra5 {[%clk 0:00:04.5]}
34... Rg2 {[%clk 0:00:26.4]} 35. Kf3 {[%clk 0:00:04.7]} 35... Ra2 {[%clk
0:00:25.6]} 36. d5 {[%clk 0:00:04.9]} 36... a3 {[%clk 0:00:20.1]} 37. Ra7 {[%clk
0:00:03.7]} 37... Rd2 {[%clk 0:00:19.3]} 38. Rxa3 {[%clk 0:00:03.1]} 38... Rxd5
{[%clk 0:00:19.5]} 39. Re3 {[%clk 0:00:02.4]} 39... Rd4 {[%clk 0:00:19]} 40. Kg2
{[%clk 0:00:02.4]} 40... Re4 {[%clk 0:00:18.7]} 41. Rf3 {[%clk 0:00:02.4]} 41...
Kh5 {[%clk 0:00:18.5]} 42. Kh3 {[%clk 0:00:03.1]} 42... Re1 {[%clk 0:00:18.5]}
43. Ra3 {[%clk 0:00:03.3]} 43... Rh1+ {[%clk 0:00:18.3]} 44. Kg2 {[%clk
0:00:03.9]} 44... Re1 {[%clk 0:00:18.3]} 45. Kh3 {[%clk 0:00:04.4]} 45... Re2
{[%clk 0:00:17.5]} 46. Rb3 {[%clk 0:00:04.1]} 46... Rc2 {[%clk 0:00:16]} 47. Ra3
{[%clk 0:00:04.2]} 47... Kg6 {[%clk 0:00:15.6]} 48. Ra7 {[%clk 0:00:03.8]} 48...
h5 {[%clk 0:00:15.1]} 49. Rb7 {[%clk 0:00:03.7]} 49... Rf2 {[%clk 0:00:14.9]}
50. Ra7 {[%clk 0:00:03.9]} 50... h4 {[%clk 0:00:14.6]} 51. gxh4 {[%clk
0:00:02.9]} 51... Rf3+ {[%clk 0:00:14.5]} 52. Kg2 {[%clk 0:00:02.8]} 52... Rxf4
{[%clk 0:00:15]} 53. Kg3 {[%clk 0:00:03.5]} 53... Rg4+ {[%clk 0:00:15]} 54. Kh3
{[%clk 0:00:04.1]} 54... Rg1 {[%clk 0:00:14.3]} 55. Ra8 {[%clk 0:00:04.2]} 55...
Kg7 {[%clk 0:00:13.5]} 56. Kh2 {[%clk 0:00:03.7]} 56... Rb1 {[%clk 0:00:11]} 57.
Kg3 {[%clk 0:00:04.2]} 57... Rb4 {[%clk 0:00:10.9]} 58. Kh3 {[%clk 0:00:04.3]}
58... Rc4 {[%clk 0:00:09.3]} 59. Rb8 {[%clk 0:00:04.3]} 59... Kg6 {[%clk
0:00:08.9]} 60. Rg8+ {[%clk 0:00:03.9]} 60... Kh7 {[%clk 0:00:08.9]} 61. Ra8
{[%clk 0:00:04]} 61... Kg7 {[%clk 0:00:08.9]} 62. Rb8 {[%clk 0:00:04.3]} 62...
Rd4 {[%clk 0:00:08.7]} 63. Ra8 {[%clk 0:00:04.5]} 63... Rb4 {[%clk 0:00:08.5]}
64. Rc8 {[%clk 0:00:04.5]} 64... f4 {[%clk 0:00:08.7]} 65. Kg4 {[%clk
0:00:04.4]} 65... f3+ {[%clk 0:00:08.8]} 66. Kxf3 {[%clk 0:00:04.8]} 66... Rxh4
{[%clk 0:00:09.1]} 67. Rc5 {[%clk 0:00:05.2]} 67... Kg6 {[%clk 0:00:09.1]} 68.
Kg3 {[%clk 0:00:05.7]} 68... Ra4 {[%clk 0:00:08.6]} 69. Kf3 {[%clk 0:00:06.1]}
69... Rb4 {[%clk 0:00:08.4]} 70. Ra5 {[%clk 0:00:06.3]} 70... Rd4 {[%clk
0:00:08.2]} 71. Kg3 {[%clk 0:00:06.7]} 71... Rd8 {[%clk 0:00:07.8]} 72. Kf3
{[%clk 0:00:06.9]} 72... Kf7 {[%clk 0:00:08]} 73. Ra6 {[%clk 0:00:06.8]} 73...
Re8 {[%clk 0:00:07.4]} 74. Kf4 {[%clk 0:00:07.1]} 74... Re5 {[%clk 0:00:07.7]}
75. Ra7+ {[%clk 0:00:06.9]} 75... Kg6 {[%clk 0:00:07]} 76. Ra8 {[%clk
0:00:06.5]} 76... Rh5 {[%clk 0:00:06.9]} 77. Rg8+ {[%clk 0:00:06.5]} 77... Kf7
{[%clk 0:00:06.4]} 78. Ra8 {[%clk 0:00:07.4]} 78... Ke6 {[%clk 0:00:06.3]} 79.
Ra6+ {[%clk 0:00:06.6]} 79... Kf7 {[%clk 0:00:06.4]} 80. Ra7+ {[%clk 0:00:07.1]}
80... Kg6 {[%clk 0:00:06.5]} 81. Ra8 {[%clk 0:00:06.1]} 81... Rh4+ {[%clk
0:00:06.6]} 82. Kg3 {[%clk 0:00:06.7]} 82... Rb4 {[%clk 0:00:06.7]} 83. Kf3
{[%clk 0:00:06.8]} 83... Kg5 {[%clk 0:00:06.2]} 84. Ra3 {[%clk 0:00:06.7]} 84...
Rh4 {[%clk 0:00:04.7]} 85. Kg3 {[%clk 0:00:06.3]} 85... f5 {[%clk 0:00:05]} 86.
Ra8 {[%clk 0:00:06]} 86... f4+ {[%clk 0:00:04.6]} 87. Kf3 {[%clk 0:00:05.9]}
87... Rh3+ {[%clk 0:00:04.6]} 88. Kf2 {[%clk 0:00:06.5]} 88... Rb3 {[%clk
0:00:04.4]} 89. Rg8+ {[%clk 0:00:06.9]} 89... Kf5 {[%clk 0:00:04.7]} 90. Rf8+
{[%clk 0:00:07.4]} 90... Kg5 {[%clk 0:00:04.9]} 91. Rg8+ {[%clk 0:00:07.8]}
91... Kf5 {[%clk 0:00:05.2]} 92. Rf8+ {[%clk 0:00:08.3]} 92... Kg5 {[%clk
0:00:05.2]} 93. Rg8+ {[%clk 0:00:08.7]} 1/2-1/2